bitfinex/quotes_ETHUSD_20251006
["timestamp","ask_amount","ask_price","bid_price","bid_amount"]
[1759717448177,5.0167011,4527.1,4527.0,53.58209527]
[1759717448380,6.2467011,4527.1,4527.0,53.58209527]
[1759717448537,5.5844012,4527.1,4527.0,23.58209527]
[1759717448978,4.92224748,4527.1,4527.0,53.58209527]
[1759717449584,4.92224748,4527.1,4527.0,23.58209527]
[1759717449793,6.15224748,4527.1,4527.0,23.58209527]
[1759717449992,6.15224748,4527.1,4527.0,53.58209527]
[1759717450282,5.79355773,4527.1,4527.0,53.58209527]
[1759717451262,7.02355773,4527.1,4527.0,53.13719527]
[1759717451983,7.02355773,4527.1,4527.0,50.62719527]
[1759717452181,7.02355773,4527.1,4527.0,43.66919927]
[1759717452680,8.25355773,4527.1,4527.0,55.43119527]
[1759717453647,8.71425773,4527.1,4527.0,31.70232586]
[1759717453849,8.71425773,4527.1,4527.0,32.54668586]
[1759717454050,9.94425773,4527.1,4527.0,32.54668586]
[1759717454372,9.94425773,4527.1,4527.0,25.85460586]
[1759717454752,9.94425773,4527.1,4527.0,31.29384127]
[1759717455150,9.48355773,4527.1,4527.0,31.29384127]
[1759717455548,10.71355773,4527.1,4527.0,31.29384127]
[1759717455745,10.71355773,4527.1,4527.0,36.57462227]
[1759717455982,11.17425773,4527.1,4527.0,31.13573827]
[1759717456682,10.71355773,4527.1,4527.0,31.13573827]
[1759717456894,11.17425773,4527.1,4527.0,30.44499927]
[1759717457099,12.40425773,4527.1,4527.0,30.44499927]
[1759717457596,12.40425773,4527.1,4527.0,30.44599927]
[1759717457896,12.40625773,4527.1,4527.0,30.97149427]
[1759717458085,12.40625773,4527.1,4527.0,30.58431227]
[1759717458292,12.86907662,4527.1,4527.0,30.58431227]
[1759717458799,12.86907662,4527.1,4527.0,23.13819527]
[1759717459002,12.40837662,4527.1,4527.0,36.27568227]
[1759717459871,13.63837662,4527.1,4527.0,42.36011527]
[1759717460072,13.63837662,4527.1,4527.0,42.80501527]
[1759717460400,13.27964017,4527.1,4527.0,42.80501527]
[1759717460995,13.27964017,4527.1,4527.0,53.58309527]
[1759717461208,14.50964017,4527.1,4527.0,47.93062127]
[1759717461417,14.50964017,4527.1,4527.0,36.30553527]
[1759717461704,14.50964017,4527.1,4527.0,34.82815727]
[1759717461902,14.50964017,4527.1,4527.0,38.55934572]
[1759717462104,14.50964017,4527.1,4527.0,37.86426972]
[1759717462496,15.73964017,4527.1,4527.0,37.86426972]
[1759717463086,15.73964017,4527.1,4527.0,38.69086972]
[1759717463286,16.20034017,4527.1,4527.0,35.11474372]
[1759717463806,16.96964017,4527.1,4527.0,28.81830231]
[1759717464007,17.43034017,4527.1,4527.0,17.67417031]
[1759717464214,17.43034017,4527.1,4527.0,15.27417031]
[1759717464504,17.43034017,4527.1,4527.0,20.18317031]
[1759717464684,17.43034017,4527.1,4527.0,20.81677031]
[1759717465089,17.43034017,4527.1,4527.0,17.67417031]
[1759717465283,18.66034017,4527.1,4527.0,18.41677031]
[1759717465676,18.66034017,4527.1,4527.0,20.81677031]
[1759717466815,19.89034017,4527.1,4527.0,20.18317031]
[1759717467017,19.89034017,4527.1,4527.0,19.5204]
[1759717467196,19.89034017,4527.1,4527.0,20.154]
[1759717467919,19.89034017,4527.1,4527.0,3.145]
[1759717468141,21.12034017,4527.1,4527.0,5.654]
[1759717468308,21.68060954,4527.1,4527.0,5.654]
[1759717469409,22.91060954,4527.1,4527.0,5.654]
[1759717470714,25.11952915,4527.1,4527.0,5.654]
[1759717470904,24.14060954,4527.1,4527.0,5.654]
[1759717472303,25.37060954,4527.1,4527.0,5.654]
[1759717472502,27.57952915,4527.1,4527.0,0.745]
[1759717472814,27.57952915,4527.1,4527.0,2.6194]
[1759717473837,28.80952915,4527.1,4527.0,2.6194]
[1759717475102,30.03952915,4527.1,4527.0,2.6194]
[1759717475698,27.83060954,4527.1,4527.0,2.6194]
[1759717476128,30.03952915,4527.1,4527.0,2.6194]
[1759717476509,31.26952915,4527.1,4527.0,2.6194]
[1759717477513,34.45959016,4527.1,4527.0,0.1114]
[1759717477835,34.45959016,4527.1,4527.0,2.6194]
[1759717478032,35.68959016,4527.1,4527.0,2.6194]
[1759717479404,36.91959016,4527.1,4527.0,2.6194]
[1759717480847,38.14959016,4527.1,4526.7,0.1104]
[1759717481011,2.20916361,4526.6,4526.5,0.001]
[1759717481514,2.64946361,4526.6,4526.5,0.001]
[1759717482335,3.87946361,4526.6,4526.5,0.001]
[1759717482959,3.87946361,4526.6,4526.0,0.001]
[1759717482960,2.20940765,4526.1,4526.0,0.001]
[1759717483191,5.84134271,4526.1,4526.0,0.001]
[1759717483337,6.28164271,4526.1,4526.0,0.001]
[1759717483849,7.51164271,4526.1,4526.0,0.001]
[1759717485134,8.74164271,4526.1,4526.0,0.001]
[1759717485769,14.33170372,4526.1,4526.0,0.001]
[1759717485969,14.33170372,4526.1,4525.1,0.01]
[1759717485970,2.20984707,4525.2,4525.1,1e-08]
[1759717486159,8.35087001,4525.2,4525.1,1e-08]
[1759717486578,10.02117001,4525.2,4525.1,1e-08]
[1759717487965,11.25117001,4525.2,4525.1,1e-08]
[1759717489371,12.48117001,4525.2,4525.1,1e-08]
[1759717490877,13.71117001,4525.2,4525.1,0.00100001]
[1759717491079,13.82157001,4525.2,4525.1,0.00100001]
[1759717491252,16.22157001,4525.2,4525.1,0.00100001]
[1759717492158,17.45157001,4525.2,4525.1,0.00100001]
[1759717493363,18.68157001,4525.2,4525.1,0.00100001]
[1759717494691,19.91157001,4525.2,4525.1,0.00100001]
[1759717496393,21.14157001,4525.2,4525.1,0.00100001]
[1759717497566,21.14157001,4525.2,4524.1,0.011]
[1759717497567,2.4,4525.1,4524.1,1e-08]
[1759717497768,2.21038438,4524.1,4523.1,0.011]
[1759717497968,5.40064084,4523.7,4523.1,0.011]
[1759717498154,7.90964084,4523.7,4523.1,0.011]
[1759717498360,8.34994084,4523.7,4523.1,0.011]
[1759717499184,9.57994084,4523.7,4523.1,0.011]
[1759717499797,9.86370499,4523.7,4523.1,0.011]
[1759717500497,11.09370499,4523.7,4523.1,0.011]
[1759717500860,2.46,4523.7,4523.6,0.4454]
[1759717501765,3.69,4523.7,4523.6,0.4454]
[1759717503324,4.92,4523.7,4523.6,0.4454]
[1759717503528,4.92,4523.7,4523.6,1.079]
[1759717504491,7.13057983,4523.7,4523.6,0.001]
[1759717504827,10.04699455,4523.7,4523.6,0.001]
[1759717505486,9.61369455,4523.7,4523.6,0.001]
[1759717505745,9.91411472,4523.7,4523.6,0.001]
[1759717505997,12.12469455,4523.7,4523.6,0.001]
[1759717506204,13.35469455,4523.7,4523.6,0.001]
[1759717506884,8.63311472,4523.7,4523.6,0.001]
[1759717507127,7.38,4523.7,4523.6,0.4384]
[1759717507520,8.61,4523.7,4523.6,0.4384]
[1759717508138,8.61,4523.7,4523.6,0.001]
[1759717508139,13.33057983,4523.7,4523.6,0.001]
[1759717508911,14.56057983,4523.7,4523.6,0.001]
[1759717509789,14.99387983,4523.7,4523.6,0.001]
[1759717509995,16.29205802,4523.7,4523.6,0.001]
[1759717510190,9.84,4523.7,4523.6,0.001]
[1759717510418,16.22487983,4523.7,4523.6,0.001]
[1759717510731,15.90197983,4523.7,4523.6,0.001]
[1759717511499,20.17506613,4523.7,4523.6,0.001]
[1759717511844,21.40506613,4523.7,4523.6,0.001]
[1759717512043,23.57355794,4523.7,4523.6,0.001]
[1759717512538,25.97355794,4523.7,4523.6,0.001]
[1759717513028,27.20355794,4523.7,4523.6,0.001]
[1759717513631,20.30907164,4523.7,4523.6,0.001]
[1759717513798,23.25537164,4523.7,4523.6,0.001]
[1759717514349,24.48537164,4523.7,4523.6,0.001]
[1759717514526,21.65207164,4523.7,4523.6,0.001]
[1759717514829,16.92849181,4523.7,4523.6,0.001]
[1759717514996,16.92849181,4523.7,4523.6,0.4384]
[1759717514997,21.65307164,4523.7,4523.6,0.4384]
[1759717516139,20.67249181,4523.7,4523.6,0.4384]
[1759717516335,20.71457983,4523.7,4523.6,0.4384]
[1759717517184,18.20057983,4523.7,4523.6,0.4384]
[1759717517759,19.43057983,4523.7,4523.6,0.4384]
[1759717518057,21.94357983,4523.7,4523.6,0.001]
[1759717519257,23.17357983,4523.7,4523.6,0.001]
[1759717520345,25.34207164,4523.7,4523.6,0.001]
[1759717520666,26.57207164,4523.7,4523.6,0.001]
[1759717521859,27.80207164,4523.7,4523.6,0.001]
[1759717523456,29.03207164,4523.7,4523.6,0.001]
[1759717524762,30.26207164,4523.7,4523.6,0.001]
[1759717526068,31.49207164,4523.7,4523.6,0.001]
[1759717526426,26.76849181,4523.7,4523.6,0.001]
[1759717526759,29.32257983,4523.7,4523.6,0.4384]
[1759717527061,29.32257983,4523.7,4523.6,0.001]
[1759717527454,30.55257983,4523.7,4523.6,0.001]
[1759717528162,30.98587983,4523.7,4523.6,0.001]
[1759717528364,33.26477164,4523.7,4523.6,0.001]
[1759717528862,34.49477164,4523.7,4523.6,0.001]
[1759717529363,36.82077164,4523.7,4523.6,0.001]
[1759717529532,34.49477164,4523.7,4523.6,0.001]
[1759717529987,31.54947164,4523.7,4523.6,0.001]
[1759717530288,35.29147164,4523.7,4523.6,0.001]
[1759717531872,31.79889181,4523.7,4523.6,0.001]
[1759717532203,36.52147164,4523.7,4523.6,0.001]
[1759717533025,36.97247164,4523.7,4523.6,0.001]
[1759717533259,38.20247164,4523.7,4523.6,0.001]
[1759717533852,37.75147164,4523.7,4523.6,0.001]
[1759717534631,38.98147164,4523.7,4523.6,0.001]
[1759717536080,35.48889181,4523.7,4523.6,0.001]
[1759717536248,35.48889181,4523.7,4523.6,0.4347]
[1759717536249,35.53097983,4523.7,4523.6,0.4347]
[1759717536449,35.42057983,4523.7,4523.6,0.4347]
[1759717536872,33.21,4523.7,4523.6,0.4347]
[1759717537158,35.42057983,4523.7,4523.6,0.001]
[1759717537357,41.88337164,4523.7,4523.6,0.001]
[1759717538682,43.11337164,4523.7,4523.6,0.001]
[1759717540272,44.34337164,4523.7,4523.6,0.001]
[1759717542298,45.57337164,4523.7,4523.6,0.001]
[1759717543572,46.80337164,4523.7,4523.6,0.001]
[1759717543772,46.36147164,4523.7,4523.6,0.001]
[1759717544097,46.36047164,4523.7,4523.6,0.4347]
[1759717545406,45.42197983,4523.7,4523.6,0.4347]
[1759717546795,45.42197983,4523.7,4523.6,0.001]
[1759717547001,46.65197983,4523.7,4523.6,0.001]
[1759717547308,47.09387983,4523.7,4523.6,0.001]
[1759717548490,48.32387983,4523.7,4523.6,0.001]
[1759717548676,50.49237164,4523.7,4523.6,0.001]
[1759717549920,51.72237164,4523.7,4523.6,0.001]
[1759717550950,51.72237164,4523.7,4523.3,0.001]
[1759717550951,2.21082419,4523.2,4523.1,1e-08]
[1759717551135,4.72182419,4523.2,4523.1,1e-08]
[1759717551337,6.08958177,4523.2,4523.1,1e-08]
[1759717551667,8.48958177,4523.2,4523.1,1e-08]
[1759717552020,8.69566971,4523.2,4523.1,1e-08]
[1759717552215,8.48958177,4523.2,4523.1,1e-08]
[1759717552646,9.71958177,4523.2,4523.1,1e-08]
[1759717554153,10.94958177,4523.2,4523.1,1e-08]
[1759717555554,12.17958177,4523.2,4523.1,1e-08]
[1759717556128,9.22668177,4523.2,4523.1,1e-08]
[1759717556332,11.73768177,4523.2,4523.1,1e-08]
[1759717556846,12.96768177,4523.2,4523.1,1e-08]
[1759717558505,14.19768177,4523.2,4523.1,1e-08]
[1759717559160,18.03848913,4523.2,4523.1,1e-08]
[1759717559851,19.26848913,4523.2,4523.1,1e-08]
[1759717561226,20.49848913,4523.2,4523.1,1e-08]
[1759717561730,18.09848913,4523.2,4523.1,1e-08]
[1759717562552,19.32848913,4523.2,4523.1,1e-08]
[1759717564261,19.79338913,4523.2,4523.1,1e-08]
[1759717564436,21.02338913,4523.2,4523.1,1e-08]
[1759717566058,22.25338913,4523.2,4523.1,1e-08]
[1759717566262,26.97938913,4523.2,4523.1,1e-08]
[1759717567262,26.34009348,4523.2,4523.1,1e-08]
[1759717567454,27.57009348,4523.2,4523.1,1e-08]
[1759717568976,28.80009348,4523.2,4523.1,1e-08]
[1759717569424,3.20151171,4522.4,4522.1,1e-08]
[1759717569626,2.21131307,4522.2,4522.1,1e-08]
[1759717570258,3.44131307,4522.2,4522.1,1e-08]
[1759717571750,4.67131307,4522.2,4522.1,1e-08]
[1759717573157,5.90131307,4522.2,4522.1,1e-08]
[1759717573333,7.83647314,4522.2,4522.1,1e-08]
[1759717574392,9.06647314,4522.2,4522.1,1e-08]
[1759717575303,4.92,4522.2,4522.1,0.46870001]
[1759717575588,7.429,4522.2,4522.1,0.46870001]
[1759717575897,8.659,4522.2,4522.1,0.46870001]
[1759717576258,6.15,4522.2,4522.1,0.46870001]
[1759717576462,8.36131307,4522.2,4522.1,0.46870001]
[1759717576661,6.15,4522.2,4522.1,0.46870001]
[1759717577267,7.38,4522.2,4522.1,0.46870001]
[1759717577574,7.38,4522.2,4522.1,1.10230001]
[1759717578490,8.61,4522.2,4522.1,1.10230001]
[1759717578874,8.61,4522.2,4522.1,1.12441362]
[1759717579183,8.61,4522.2,4522.1,1.10230001]
[1759717579389,8.61,4522.2,4522.1,1.21270001]
[1759717579967,9.84,4522.2,4522.1,1.21270001]
[1759717581209,9.84,4522.2,4522.1,6.12370001]
[1759717581379,11.07,4522.2,4522.1,6.12370001]
[1759717581574,11.07,4522.2,4522.1,20.62370001]
[1759717582688,12.3,4522.2,4522.1,20.62370001]
[1759717584081,13.53,4522.2,4522.1,20.62370001]
[1759717584575,13.53,4522.2,4522.1,6.12370001]
[1759717585087,13.53,4522.2,4522.1,20.62370001]
[1759717585496,14.76,4522.2,4522.1,20.62370001]
[1759717586096,14.76,4522.2,4522.1,21.28737204]
[1759717587014,15.99,4522.2,4522.1,21.28737204]
[1759717588011,15.99,4522.2,4522.1,3.17407204]
[1759717588192,15.99,4522.2,4522.1,5.48910001]
[1759717588387,17.22,4522.2,4522.1,5.48910001]
[1759717589003,17.22,4522.2,4522.1,6.12270001]
[1759717589392,17.22,4522.2,4522.1,6.78642196]
[1759717589918,18.45,4522.2,4522.1,6.78642196]
[1759717591510,19.68,4522.2,4522.1,6.78642196]
[1759717591711,19.68,4522.2,4522.1,3.80772196]
[1759717592027,19.68,4522.2,4522.1,6.31772196]
[1759717592386,19.68,4522.2,4522.1,6.78642196]
[1759717592920,20.91,4522.2,4522.1,6.78642196]
[1759717594388,22.14,4522.2,4522.1,6.78642196]
[1759717594699,22.142,4522.2,4522.1,6.78642196]
[1759717595911,23.372,4522.2,4522.1,6.78642196]
[1759717597637,24.602,4522.2,4522.1,6.78642196]
[1759717598751,24.602,4522.2,4522.1,21.28642196]
[1759717598952,25.832,4522.2,4522.1,21.28642196]
[1759717600441,27.062,4522.2,4522.1,21.28642196]
[1759717602449,28.292,4522.2,4522.1,21.28642196]
[1759717602855,28.292,4522.2,4522.1,18.30772196]
[1759717603054,28.292,4522.2,4522.1,20.81572196]
[1759717603559,29.522,4522.2,4522.1,6.31572196]
[1759717604133,29.9946,4522.2,4522.1,3.14400001]
[1759717604458,29.9946,4522.2,4522.1,3.25100001]
[1759717605357,31.2246,4522.2,4522.1,3.25100001]
[1759717606457,30.752,4522.2,4522.1,3.25100001]
[1759717606661,31.982,4522.2,4522.1,3.25100001]
[1759717607158,32.4546,4522.2,4522.1,3.25100001]
[1759717608066,33.6846,4522.2,4522.1,2.61740001]
[1759717608231,37.64050545,4522.2,4522.1,0.11040001]
[1759717609330,41.37750545,4522.2,4522.1,1e-08]
[1759717610367,44.57901716,4522.2,4522.1,1e-08]
[1759717610744,45.80901716,4522.2,4522.1,1e-08]
[1759717612343,47.03901716,4522.2,4522.1,1e-08]
[1759717613055,41.33050545,4522.2,4522.1,1e-08]
[1759717613263,43.83850545,4522.2,4522.1,1e-08]
[1759717613783,45.06850545,4522.2,4522.1,1e-08]
[1759717614949,46.29850545,4522.2,4522.1,1e-08]
[1759717616480,42.33659238,4522.2,4522.1,1e-08]
[1759717616786,40.592,4522.2,4522.1,0.43320001]
[1759717617699,40.592,4522.2,4522.1,3.57580001]
[1759717617863,41.822,4522.2,4522.1,3.57580001]
[1759717619354,43.052,4522.2,4522.1,3.57580001]
[1759717620890,43.052,4522.2,4522.1,3.14260001]
[1759717621112,44.282,4522.2,4522.1,3.57580001]
[1759717621857,44.282,4522.2,4522.1,3.14260001]
[1759717622589,45.512,4522.2,4522.1,3.14260001]
[1759717623797,45.512,4522.2,4522.1,1e-08]
[1759717623798,48.95331307,4522.2,4522.1,1e-08]
[1759717623996,51.57790488,4522.2,4522.1,1e-08]
[1759717624878,54.08590488,4522.2,4522.1,1e-08]
[1759717625285,55.31590488,4522.2,4522.1,1e-08]
[1759717625887,52.80790488,4522.2,4522.1,1e-08]
[1759717626700,54.03790488,4522.2,4522.1,1e-08]
[1759717628014,57.77590488,4522.2,4522.1,1e-08]
[1759717629282,59.00590488,4522.2,4522.1,1e-08]
[1759717630722,60.23590488,4522.2,4522.1,1e-08]
[1759717632091,61.46590488,4522.2,4522.1,1e-08]
[1759717633533,62.69590488,4522.2,4522.1,1e-08]
[1759717635331,63.92590488,4522.2,4522.1,1e-08]
[1759717636259,63.46980488,4522.2,4522.1,1e-08]
[1759717637503,65.15590488,4522.2,4522.1,1e-08]
[1759717638769,66.38590488,4522.2,4522.1,1e-08]
[1759717640048,67.61590488,4522.2,4522.1,1e-08]
[1759717641076,67.15980488,4522.2,4522.1,1e-08]
[1759717641324,60.272,4522.2,4522.1,0.57800001]
[1759717641620,61.502,4522.2,4522.1,1.21160001]
[1759717642985,62.732,4522.2,4522.1,1.21160001]
[1759717644133,62.732,4522.2,4522.1,3.71760001]
[1759717644289,63.962,4522.2,4522.1,3.71760001]
[1759717644710,63.962,4522.2,4522.1,1.21160001]
[1759717644915,63.962,4522.2,4522.1,2.61640001]
[1759717645334,63.962,4522.2,4522.1,3.08400001]
[1759717645738,65.192,4522.2,4522.1,2.61640001]
[1759717646050,67.85941307,4522.2,4522.1,2.61640001]
[1759717646345,65.192,4522.2,4522.1,2.61640001]
[1759717646549,67.40331307,4522.2,4522.1,2.61640001]
[1759717647130,68.63331307,4522.2,4522.1,2.61640001]
[1759717647841,66.422,4522.2,4522.1,2.61640001]
[1759717648151,68.63331307,4522.2,4522.1,2.61640001]
[1759717648650,69.08941307,4522.2,4522.1,0.11040001]
[1759717648856,70.31941307,4522.2,4522.1,0.11040001]
[1759717649956,74.99290488,4522.2,4522.1,1e-08]
[1759717650115,76.22290488,4522.2,4522.1,1e-08]
[1759717651358,74.05441307,4522.2,4522.1,1e-08]
[1759717651512,75.28441307,4522.2,4522.1,1e-08]
[1759717653437,76.51441307,4522.2,4522.1,1e-08]
[1759717654856,77.74441307,4522.2,4522.1,1e-08]
[1759717655877,77.74441307,4522.2,4521.6,0.001]
[1759717655878,77.477,4522.2,4521.6,0.001]
[1759717656154,2.2115576,4521.7,4521.6,0.001]
[1759717656330,4.7165576,4521.7,4521.6,0.001]
[1759717656514,5.1670576,4521.7,4521.6,0.001]
[1759717657739,6.3970576,4521.7,4521.6,0.001]
[1759717657921,7.65305562,4521.7,4521.6,0.001]
[1759717658723,10.05305562,4521.7,4521.6,0.001]
[1759717659119,11.28305562,4521.7,4521.6,0.001]
[1759717659835,2.21180217,4521.2,4521.1,1e-08]
[1759717660020,11.75159226,4521.2,4521.1,1e-08]
[1759717660221,12.20209226,4521.2,4521.1,1e-08]
[1759717660556,13.52064651,4521.2,4521.1,1e-08]
[1759717661131,13.52064651,4521.2,4521.1,0.00100001]
[1759717661952,14.75064651,4521.2,4521.1,0.00100001]
[1759717662462,7.95310944,4521.2,4521.1,0.00100001]
[1759717662750,10.37155519,4521.2,4521.1,0.00100001]
[1759717663256,11.60155519,4521.2,4521.1,0.00100001]
[1759717663657,11.60055519,4521.2,4521.1,0.00100001]
[1759717663820,12.05105519,4521.2,4521.1,0.00100001]
[1759717664156,11.60055519,4521.2,4521.1,0.00100001]
[1759717664522,12.83055519,4521.2,4521.1,0.00100001]
[1759717665955,14.06055519,4521.2,4521.1,0.00100001]
[1759717666956,11.55455519,4521.2,4521.1,0.00100001]
[1759717667336,15.29055519,4521.2,4521.1,0.00100001]
[1759717667534,12.78455519,4521.2,4521.1,0.00100001]
[1759717667736,15.29055519,4521.2,4521.1,0.44100001]
[1759717668141,14.60820217,4521.2,4521.1,0.44100001]
[1759717668864,15.83820217,4521.2,4521.1,0.44100001]
[1759717669358,11.01,4521.2,4521.1,0.44100001]
[1759717669564,13.22180217,4521.2,4521.1,0.55140001]
[1759717669748,10.82180217,4521.2,4521.1,0.55140001]
[1759717670162,12.05180217,4521.2,4521.1,0.55140001]
[1759717671847,13.28180217,4521.2,4521.1,0.11140001]
[1759717672248,13.28180217,4521.2,4521.1,0.55140001]
[1759717673241,14.51180217,4521.2,4521.1,0.55140001]
[1759717674191,12.3,4521.2,4521.1,0.55140001]
[1759717674754,13.53,4521.2,4521.1,0.55140001]
[1759717675391,15.74180217,4521.2,4521.1,0.55140001]
[1759717675758,13.53,4521.2,4521.1,0.55140001]
[1759717676308,14.76,4521.2,4521.1,0.55140001]
[1759717676994,14.76,4521.2,4521.1,0.44100001]
[1759717677752,15.99,4521.2,4521.1,0.00100001]
[1759717678090,15.99,4521.2,4521.1,0.44100001]
[1759717678580,15.992,4521.2,4521.1,0.44100001]
[1759717679176,17.222,4521.2,4521.1,0.44100001]
[1759717680718,18.452,4521.2,4521.1,0.44100001]
[1759717682107,19.682,4521.2,4521.1,0.44100001]
[1759717683391,20.912,4521.2,4521.1,0.44100001]
[1759717684808,22.142,4521.2,4521.1,0.44100001]
[1759717685528,22.142,4521.2,4521.1,0.46060001]
[1759717686120,22.142,4521.2,4521.1,0.00100001]
[1759717686329,23.372,4521.2,4521.1,0.00100001]
[1759717686629,23.8341,4521.2,4521.1,0.00100001]
[1759717686791,23.372,4521.2,4521.1,0.11140001]
[1759717687722,24.602,4521.2,4521.1,0.11140001]
[1759717689315,25.832,4521.2,4521.1,0.11140001]
[1759717689806,25.832,4521.2,4521.1,0.57100001]
[1759717690190,25.832,4521.2,4521.1,0.11140001]
[1759717691025,27.062,4521.2,4521.1,0.57100001]
[1759717692407,28.292,4521.2,4521.1,0.57100001]
[1759717693682,29.522,4521.2,4521.1,0.57100001]
[1759717695148,30.752,4521.2,4521.1,0.57100001]
[1759717696400,30.752,4521.2,4521.1,1.20460001]
[1759717696603,31.982,4521.2,4521.1,1.20460001]
[1759717697530,31.982,4521.2,4521.1,3.66632401]
[1759717697715,31.982,4521.2,4521.1,18.49914679]
[1759717697918,33.212,4521.2,4521.1,29.61923779]
[1759717698120,33.212,4521.2,4521.1,39.55538779]
[1759717698816,33.212,4521.2,4521.1,46.49647779]
[1759717699210,34.442,4521.2,4521.1,46.49647779]
[1759717699942,34.442,4521.2,4521.1,50.64873979]
[1759717700141,34.442,4521.2,4521.1,53.15373979]
[1759717700523,35.672,4521.2,4521.1,52.77912279]
[1759717700950,35.672,4521.2,4521.1,23.15373979]
[1759717701471,35.672,4521.2,4521.1,52.75603379]
[1759717701877,26.77985977,4521.2,4521.1,53.15373979]
[1759717702075,22.79954361,4521.2,4521.1,53.15373979]
[1759717702453,4.16911973,4521.2,4521.1,53.15373979]
[1759717702957,73.802,4522.2,4522.0,3.0336]
[1759717703153,73.802,4522.2,4522.1,17.47806797]
[1759717703751,73.802,4522.2,4522.1,31.97806797]
[1759717704677,75.032,4522.2,4522.1,41.93241397]
[1759717705383,75.032,4522.2,4522.1,29.42674797]
[1759717705689,75.032,4522.2,4522.1,31.15104297]
[1759717705846,76.262,4522.2,4522.1,31.15104297]
[1759717706042,76.262,4522.2,4522.1,29.76652997]
[1759717706543,76.262,4522.2,4522.1,31.26600397]
[1759717707181,77.492,4522.2,4522.1,31.26600397]
[1759717707550,77.492,4522.2,4522.1,31.45367597]
[1759717707749,77.492,4522.2,4522.1,31.56407597]
[1759717708585,78.722,4522.2,4522.1,15.244]
[1759717708782,78.722,4522.2,4522.1,17.749]
[1759717708988,78.722,4522.2,4522.1,19.96036197]
[1759717709498,78.722,4522.2,4522.1,17.749]
[1759717709881,79.952,4522.2,4522.1,17.749]
[1759717710269,79.952,4522.2,4522.1,23.35967297]
[1759717710457,79.952,4522.2,4522.1,20.41996197]
[1759717711300,81.182,4522.2,4522.1,20.41996197]
[1759717713060,82.412,4522.2,4522.1,20.41996197]
[1759717713264,82.412,4522.2,4522.1,22.62178297]
[1759717713487,82.412,4522.2,4522.1,20.41996197]
[1759717713688,82.412,4522.2,4522.1,22.20952997]
[1759717714304,82.412,4522.2,4522.1,19.96036197]
[1759717714505,83.642,4522.2,4522.1,19.96036197]
[1759717715604,83.642,4522.2,4522.1,24.24026397]
[1759717715787,84.872,4522.2,4522.1,24.24026397]
[1759717716519,84.872,4522.2,4522.1,22.54415797]
[1759717717123,84.872,4522.2,4522.1,22.07516397]
[1759717717328,86.102,4522.2,4522.1,22.07516397]
[1759717717512,86.102,4522.2,4522.1,22.53989797]
[1759717717717,86.102,4522.2,4522.1,22.65310202]
[1759717718208,86.102,4522.2,4522.1,22.34030502]
[1759717718416,86.102,4522.2,4522.1,22.78200502]
[1759717718601,87.332,4522.2,4522.1,23.10979902]
[1759717718922,87.332,4522.2,4522.1,22.19763102]
[1759717719623,87.332,4522.2,4522.1,20.07356602]
[1759717719814,87.332,4522.2,4522.1,22.19536602]
[1759717719996,88.562,4522.2,4522.1,22.19536602]
[1759717720322,88.562,4522.2,4522.1,20.07356602]
[1759717720499,88.562,4522.2,4522.1,22.09626702]
[1759717720707,88.562,4522.2,4522.1,23.34242802]
[1759717720914,88.562,4522.2,4522.1,22.37786102]
[1759717721490,89.792,4522.2,4522.1,22.37786102]
[1759717721695,89.792,4522.2,4522.1,20.07356602]
[1759717721994,89.792,4522.2,4522.1,22.39996702]
[1759717722426,89.792,4522.2,4522.1,19.96036197]
[1759717722902,91.022,4522.2,4522.1,19.96036197]
[1759717723636,91.022,4522.2,4521.4,2.21168781]
[1759717723637,2.21136197,4522.1,4520.1,0.011]
[1759717723931,3.20169776,4520.8,4519.3,0.41245604]
[1759717724135,2.4,4521.9,4519.4,0.762]
[1759717724136,3.20169776,4520.5,4519.4,0.762]
[1759717724334,3.20169776,4520.5,4518.1,0.03]
[1759717724335,3.20169776,4520.2,4519.5,0.762]
[1759717724536,2.521,4520.5,4519.5,0.762]
[1759717724537,0.4573,4520.1,4519.5,0.762]
[1759717724705,0.4573,4520.0,4519.5,0.762]
[1759717724904,0.4573,4519.9,4519.5,0.762]
[1759717725204,0.4573,4519.8,4519.5,0.762]
[1759717725709,1.23,4520.0,4519.5,0.762]
[1759717726112,1.23,4520.0,4519.9,0.6336]
[1759717726311,1.23,4520.0,4519.9,5.5556]
[1759717726618,1.23,4520.0,4519.9,5.9973]
[1759717727001,0.4573,4521.8,4520.7,2.21203011]
[1759717727201,0.4573,4521.8,4520.8,17.6566]
[1759717727426,0.4573,4521.8,4520.8,19.86858808]
[1759717728422,1.23,4521.8,4520.8,17.6566]
[1759717728629,0.5813,4521.7,4520.8,19.86857913]
[1759717728931,0.5813,4521.7,4520.8,19.86957913]
[1759717729737,1.8113,4521.7,4520.8,19.86957913]
[1759717730038,1.6873,4521.7,4520.8,19.86957913]
[1759717731238,2.9173,4521.7,4520.8,19.86957913]
[1759717732113,2.9173,4521.7,4520.8,17.6576]
[1759717732639,0.4573,4521.6,4521.0,0.6336]
[1759717732840,3.69,4521.7,4521.0,0.6336]
[1759717733139,0.4573,4521.5,4521.0,0.6336]
[1759717733311,0.4573,4521.4,4521.0,0.6336]
[1759717733517,5.90156579,4521.7,4521.6,0.1104]
[1759717733840,5.90156579,4521.7,4521.6,2.522]
[1759717734036,7.13156579,4521.7,4521.6,2.6324]
[1759717734220,7.58886579,4521.7,4521.6,2.6324]
[1759717735501,9.70175237,4521.7,4521.6,0.1104]
[1759717735848,9.70175237,4521.7,4521.6,2.6324]
[1759717736923,10.93175237,4521.7,4521.6,2.6324]
[1759717738406,12.16175237,4521.7,4521.6,2.6324]
[1759717740040,13.39175237,4521.7,4521.6,2.6324]
[1759717741594,14.62175237,4521.7,4521.6,2.6324]
[1759717742865,15.85175237,4521.7,4521.6,2.6324]
[1759717743664,15.85175237,4521.7,4520.8,0.001]